[Event "Early-Titled-Tuesday-Blitz-April-16-2024"]
[Site "Chess.com"]
[Date "2024.04.16"]
[Round "4"]
[White "tarno17"]
[Black "diamonds13"]
[Result "0-1"]
[WhiteElo "2123"]
[BlackElo "2333"]
[TimeControl "180+1"]
[EndTime "8:40:32 PDT"]
[Termination "diamonds13 won by checkmate"]

1. e4 {[%clk 0:03:00.9]} 1... c5 {[%clk 0:02:57.9]} 2. Nf3 {[%clk 0:03:01]} 2...
e6 {[%clk 0:02:56.5]} 3. d3 {[%clk 0:02:59.6]} 3... Nc6 {[%clk 0:02:55.6]} 4. g3
{[%clk 0:02:58.7]} 4... d5 {[%clk 0:02:51.7]} 5. Nc3 {[%clk 0:02:54.9]} 5... d4
{[%clk 0:02:43]} 6. Ne2 {[%clk 0:02:54.9]} 6... Nf6 {[%clk 0:02:42.1]} 7. Bg2
{[%clk 0:02:52.6]} 7... e5 {[%clk 0:02:41.7]} 8. O-O {[%clk 0:02:52.8]} 8... h5
{[%clk 0:02:41.2]} 9. h3 {[%clk 0:02:52.9]} 9... Be6 {[%clk 0:02:39.9]} 10. Nh2
{[%clk 0:02:52.8]} 10... Qd7 {[%clk 0:02:39.2]} 11. h4 {[%clk 0:02:37.5]} 11...
Bg4 {[%clk 0:02:38.1]} 12. f4 {[%clk 0:02:31.4]} 12... O-O-O {[%clk 0:02:35.6]}
13. f5 {[%clk 0:02:11.1]} 13... Be7 {[%clk 0:02:31]} 14. Bg5 {[%clk 0:01:52.2]}
14... Ng8 {[%clk 0:02:23.5]} 15. Bxe7 {[%clk 0:01:49.3]} 15... Ngxe7 {[%clk
0:02:14.9]} 16. Nxg4 {[%clk 0:01:16.1]} 16... hxg4 {[%clk 0:02:14.6]} 17. f6
{[%clk 0:01:16.4]} 17... gxf6 {[%clk 0:02:11.1]} 18. Rxf6 {[%clk 0:01:15.3]}
18... Ng8 {[%clk 0:02:01.8]} 19. Rf2 {[%clk 0:01:01.1]} 19... Nh6 {[%clk
0:01:55.9]} 20. Qd2 {[%clk 0:00:56.6]} 20... Rdg8 {[%clk 0:01:55]} 21. Raf1
{[%clk 0:00:55.3]} 21... Rg6 {[%clk 0:01:52.6]} 22. Rf6 {[%clk 0:00:37.6]} 22...
Nd8 {[%clk 0:01:34.7]} 23. Rxg6 {[%clk 0:00:35.7]} 23... fxg6 {[%clk 0:01:34.9]}
24. c3 {[%clk 0:00:31.1]} 24... Ne6 {[%clk 0:01:28.4]} 25. cxd4 {[%clk
0:00:29.8]} 25... Nxd4 {[%clk 0:01:25.1]} 26. Nxd4 {[%clk 0:00:22]} 26... Qxd4+
{[%clk 0:01:24.8]} 27. Kh2 {[%clk 0:00:22]} 27... Qd6 {[%clk 0:01:03.9]} 28. a3
{[%clk 0:00:11.9]} 28... Ng8 {[%clk 0:01:02.2]} 29. b4 {[%clk 0:00:10.2]} 29...
c4 {[%clk 0:00:59.8]} 30. Rc1 {[%clk 0:00:07.6]} 30... b5 {[%clk 0:01:00]} 31.
a4 {[%clk 0:00:08]} 31... Kb8 {[%clk 0:00:57.1]} 32. axb5 {[%clk 0:00:08.2]}
32... Qxd3 {[%clk 0:00:57.2]} 33. Qg5 {[%clk 0:00:06.3]} 33... Nh6 {[%clk
0:00:50.2]} 34. Qe7 {[%clk 0:00:05.1]} 34... Qd4 {[%clk 0:00:44.4]} 35. Rc2
{[%clk 0:00:03.3]} 35... Rc8 {[%clk 0:00:39.8]} 36. b6 {[%clk 0:00:02.7]} 36...
Qxb6 {[%clk 0:00:35.9]} 37. Qxe5+ {[%clk 0:00:02.7]} 37... Qc7 {[%clk
0:00:35.6]} 38. Qf6 {[%clk 0:00:01.8]} 38... Ng8 {[%clk 0:00:34.5]} 39. Qg5
{[%clk 0:00:02.1]} 39... Ne7 {[%clk 0:00:34.1]} 40. Qe3 {[%clk 0:00:01.8]} 40...
Qe5 {[%clk 0:00:31.1]} 41. Qd2 {[%clk 0:00:01.6]} 41... c3 {[%clk 0:00:25.6]}
42. Qe3 {[%clk 0:00:02]} 42... g5 {[%clk 0:00:21.2]} 43. Ra2 {[%clk 0:00:02.2]}
43... Rc7 {[%clk 0:00:19.3]} 44. hxg5 {[%clk 0:00:02.3]} 44... c2 {[%clk
0:00:18.4]} 45. Qc1 {[%clk 0:00:01.9]} 45... Ng6 {[%clk 0:00:16.7]} 46. Kg1
{[%clk 0:00:01.8]} 46... Qd4+ {[%clk 0:00:15.3]} 47. Kh1 {[%clk 0:00:01.8]}
47... Rh7+ {[%clk 0:00:15.8]} 48. Bh3 {[%clk 0:00:01.9]} 48... Rxh3+ {[%clk
0:00:16.3]} 49. Kg2 {[%clk 0:00:02.8]} 49... Nf4+ {[%clk 0:00:16.2]} 50. gxf4
{[%clk 0:00:03]} 50... Qxe4+ {[%clk 0:00:16.7]} 51. Kg1 {[%clk 0:00:02.4]} 51...
Rh1+ {[%clk 0:00:16.5]} 52. Kf2 {[%clk 0:00:02.4]} 52... Rxc1 {[%clk 0:00:17.2]}
53. b5 {[%clk 0:00:01.6]} 53... Rf1+ {[%clk 0:00:17.8]} 54. Kxf1 {[%clk
0:00:01.6]} 54... c1=Q+ {[%clk 0:00:18.1]} 55. Kf2 {[%clk 0:00:02.1]} 55...
Qcxf4+ {[%clk 0:00:18.6]} 56. Kg1 {[%clk 0:00:01.8]} 56... Qg3+ {[%clk
0:00:18.8]} 57. Kf1 {[%clk 0:00:01.9]} 57... Qh1+ {[%clk 0:00:18.3]} 58. Ke2
{[%clk 0:00:02]} 58... Qhh2+ {[%clk 0:00:18.9]} 59. Kf1 {[%clk 0:00:01.8]} 59...
Qgg1# {[%clk 0:00:19.4]} 0-1

[Event "Early-Titled-Tuesday-Blitz-April-16-2024"]
[Site "Chess.com"]
[Date "2024.04.16"]
[Round "4"]
[White "amintabatabaei"]
[Black "AlmasRakhmatullaev"]
[Result "1-0"]
[WhiteElo "3050"]
[BlackElo "2861"]
[TimeControl "180+1"]
[EndTime "8:40:36 PDT"]
[Termination "amintabatabaei won by resignation"]

1. Nf3 {[%clk 0:03:00.9]} 1... d5 {[%clk 0:02:49.5]} 2. b3 {[%clk 0:03:00.8]}
2... c6 {[%clk 0:02:48.4]} 3. Bb2 {[%clk 0:02:58.5]} 3... Nf6 {[%clk 0:02:47.9]}
4. e3 {[%clk 0:02:53.1]} 4... g6 {[%clk 0:02:44.4]} 5. c4 {[%clk 0:02:50.8]}
5... Bg7 {[%clk 0:02:44.6]} 6. Be2 {[%clk 0:02:50.5]} 6... O-O {[%clk
0:02:45.1]} 7. O-O {[%clk 0:02:50.4]} 7... Nbd7 {[%clk 0:02:44.6]} 8. d4 {[%clk
0:02:50.2]} 8... b6 {[%clk 0:02:45.1]} 9. Nc3 {[%clk 0:02:50]} 9... Bb7 {[%clk
0:02:45.2]} 10. Rc1 {[%clk 0:02:49.5]} 10... e6 {[%clk 0:02:45.5]} 11. a4 {[%clk
0:02:48.4]} 11... Re8 {[%clk 0:02:44.7]} 12. Qc2 {[%clk 0:02:47.8]} 12... Rc8
{[%clk 0:02:44.5]} 13. Rfd1 {[%clk 0:02:47.5]} 13... Qc7 {[%clk 0:02:42.9]} 14.
h3 {[%clk 0:02:35.3]} 14... Qb8 {[%clk 0:02:42.9]} 15. Qb1 {[%clk 0:02:34.3]}
15... h6 {[%clk 0:02:41.5]} 16. a5 {[%clk 0:02:29.5]} 16... c5 {[%clk
0:02:30.7]} 17. axb6 {[%clk 0:02:26]} 17... axb6 {[%clk 0:02:31.6]} 18. Nb5
{[%clk 0:02:25.7]} 18... Bc6 {[%clk 0:02:27.3]} 19. cxd5 {[%clk 0:02:07.5]}
19... Bxd5 {[%clk 0:02:14.9]} 20. Ne5 {[%clk 0:02:03.4]} 20... Bxb3 {[%clk
0:01:38.9]} 21. Rd2 {[%clk 0:02:03.4]} 21... Bd5 {[%clk 0:01:28.1]} 22. Nxd7
{[%clk 0:01:53.5]} 22... Nxd7 {[%clk 0:01:29]} 23. e4 {[%clk 0:01:46.4]} 23...
Bc6 {[%clk 0:01:28.3]} 24. dxc5 {[%clk 0:01:46.1]} 24... Qf4 {[%clk 0:01:10.5]}
25. Rcd1 {[%clk 0:00:44.7]} 25... Nxc5 {[%clk 0:00:59.2]} 26. Bxg7 {[%clk
0:00:42]} 26... Nxe4 {[%clk 0:00:46.1]} 27. Bxh6 {[%clk 0:00:15.6]} 27... Qxh6
{[%clk 0:00:36.1]} 28. Rc2 {[%clk 0:00:05.9]} 28... Bxb5 {[%clk 0:00:28.6]} 29.
Bxb5 {[%clk 0:00:06.8]} 29... Qh5 {[%clk 0:00:07.8]} 30. Bxe8 {[%clk 0:00:03.5]}
30... Rxe8 {[%clk 0:00:08.7]} 31. Re1 {[%clk 0:00:03.3]} 31... Ng5 {[%clk
0:00:07.4]} 32. Rc3 {[%clk 0:00:03.7]} 32... Rd8 {[%clk 0:00:05.8]} 33. Qxb6
{[%clk 0:00:03.8]} 33... Rd5 {[%clk 0:00:06.5]} 34. Qb8+ {[%clk 0:00:03.4]}
34... Kg7 {[%clk 0:00:07]} 35. Rg3 {[%clk 0:00:03.3]} 35... Rf5 {[%clk
0:00:04.6]} 36. Qb2+ {[%clk 0:00:03.2]} 36... Kh7 {[%clk 0:00:04.1]} 37. Qc3
{[%clk 0:00:01.5]} 37... Qh4 {[%clk 0:00:04.5]} 38. Qe3 {[%clk 0:00:01.7]} 38...
e5 {[%clk 0:00:03.5]} 39. Qe2 {[%clk 0:00:02.2]} 39... Ne6 {[%clk 0:00:03]} 40.
Rg4 {[%clk 0:00:02.5]} 40... Qf6 {[%clk 0:00:03.7]} 41. Re4 {[%clk 0:00:02.7]}
41... Nf4 {[%clk 0:00:04]} 42. Qe3 {[%clk 0:00:01.9]} 42... Rg5 {[%clk
0:00:04.9]} 43. g4 {[%clk 0:00:02.1]} 43... Ne6 {[%clk 0:00:05]} 44. Rxe5 {[%clk
0:00:02.2]} 44... Rxe5 {[%clk 0:00:05.4]} 45. Qxe5 {[%clk 0:00:03.1]} 45... Qh4
{[%clk 0:00:06.3]} 46. Qg3 {[%clk 0:00:03.3]} 46... Qf6 {[%clk 0:00:06.9]} 47.
Qg2 {[%clk 0:00:02.7]} 47... Nf4 {[%clk 0:00:07.5]} 48. Qf3 {[%clk 0:00:03.1]}
48... g5 {[%clk 0:00:06.9]} 49. Re4 {[%clk 0:00:03.4]} 49... Qa1+ {[%clk
0:00:06.2]} 50. Kh2 {[%clk 0:00:03.8]} 50... Qf6 {[%clk 0:00:06.3]} 51. Kg3
{[%clk 0:00:03.1]} 51... Qd6 {[%clk 0:00:06.8]} 52. Rxf4 {[%clk 0:00:03.4]}
52... gxf4+ {[%clk 0:00:07.7]} 53. Qxf4 {[%clk 0:00:04.3]} 53... Qe6 {[%clk
0:00:08.3]} 54. Qf5+ {[%clk 0:00:04.3]} 54... Kg7 {[%clk 0:00:09.2]} 55. Qxe6
{[%clk 0:00:04.4]} 55... fxe6 {[%clk 0:00:10.1]} 56. Kf4 {[%clk 0:00:05]} 56...
Kf6 {[%clk 0:00:11]} 57. g5+ {[%clk 0:00:05.5]} 1-0

[Event "Early-Titled-Tuesday-Blitz-April-16-2024"]
[Site "Chess.com"]
[Date "2024.04.16"]
[Round "4"]
[White "Timerkhanov"]
[Black "Yonousomodulo"]
[Result "1-0"]
[WhiteElo "2627"]
[BlackElo "2426"]
[TimeControl "180+1"]
[EndTime "8:40:37 PDT"]
[Termination "Timerkhanov won on time"]

1. d4 {[%clk 0:03:00.9]} 1... Nf6 {[%clk 0:02:59.8]} 2. Bg5 {[%clk 0:03:00.2]}
2... e6 {[%clk 0:02:59.4]} 3. Nd2 {[%clk 0:02:59.4]} 3... h6 {[%clk 0:02:59]} 4.
Bh4 {[%clk 0:02:59.1]} 4... d5 {[%clk 0:02:47]} 5. e3 {[%clk 0:02:59.2]} 5...
Be7 {[%clk 0:02:47.1]} 6. Bd3 {[%clk 0:02:59.4]} 6... b6 {[%clk 0:02:47.1]} 7.
Ngf3 {[%clk 0:02:58.7]} 7... Bb7 {[%clk 0:02:47.5]} 8. Ne5 {[%clk 0:02:58.7]}
8... Nbd7 {[%clk 0:02:42.8]} 9. Bxf6 {[%clk 0:02:58.9]} 9... gxf6 {[%clk
0:02:39.7]} 10. Nef3 {[%clk 0:02:46.2]} 10... f5 {[%clk 0:02:38.1]} 11. O-O
{[%clk 0:02:41.8]} 11... Nf6 {[%clk 0:02:36.8]} 12. Ne5 {[%clk 0:02:41.6]} 12...
Rg8 {[%clk 0:02:31.1]} 13. Bb5+ {[%clk 0:02:33.5]} 13... Kf8 {[%clk 0:02:30.1]}
14. f4 {[%clk 0:02:18.7]} 14... Qd6 {[%clk 0:02:24.4]} 15. Bd3 {[%clk
0:02:14.9]} 15... c5 {[%clk 0:02:21.9]} 16. c3 {[%clk 0:02:15]} 16... Rg7 {[%clk
0:02:11.2]} 17. Qf3 {[%clk 0:02:13]} 17... Ne4 {[%clk 0:02:06.9]} 18. Bxe4
{[%clk 0:02:10.4]} 18... fxe4 {[%clk 0:02:02.8]} 19. Qh5 {[%clk 0:02:04.5]}
19... Bf6 {[%clk 0:01:46.8]} 20. Qxh6 {[%clk 0:02:01.6]} 20... Ke7 {[%clk
0:01:41.9]} 21. f5 {[%clk 0:01:54]} 21... Rag8 {[%clk 0:01:30.2]} 22. g3 {[%clk
0:01:51.5]} 22... cxd4 {[%clk 0:01:00.1]} 23. cxd4 {[%clk 0:01:43.5]} 23... Rh8
{[%clk 0:00:49.4]} 24. Qxh8 {[%clk 0:01:32.3]} 24... Rxg3+ {[%clk 0:00:49.1]}
25. hxg3 {[%clk 0:01:32.2]} 25... Bxh8 {[%clk 0:00:49.6]} 26. fxe6 {[%clk
0:01:11]} 26... Bxe5 {[%clk 0:00:49.2]} 27. Rxf7+ {[%clk 0:01:11.7]} 27... Kxe6
{[%clk 0:00:46.8]} 28. dxe5 {[%clk 0:01:05.3]} 28... Qb4 {[%clk 0:00:30.6]} 29.
Rf6+ {[%clk 0:00:52.9]} 29... Kxe5 {[%clk 0:00:29.3]} 30. Raf1 {[%clk
0:00:53.1]} 30... Bc8 {[%clk 0:00:25.8]} 31. Nb3 {[%clk 0:00:52.9]} 31... Qe7
{[%clk 0:00:19.9]} 32. Nd4 {[%clk 0:00:45.3]} 32... Qxf6 {[%clk 0:00:18.5]} 33.
Rxf6 {[%clk 0:00:46.2]} 33... Kxf6 {[%clk 0:00:19.4]} 34. Kg2 {[%clk 0:00:24.7]}
34... Bd7 {[%clk 0:00:19.3]} 35. b4 {[%clk 0:00:20.8]} 35... a6 {[%clk
0:00:17.4]} 36. a3 {[%clk 0:00:20.6]} 36... Ke5 {[%clk 0:00:17.5]} 37. Ne2
{[%clk 0:00:20.1]} 37... Bb5 {[%clk 0:00:15.6]} 38. Nd4 {[%clk 0:00:20.5]} 38...
Bd7 {[%clk 0:00:13.4]} 39. Kf2 {[%clk 0:00:21]} 39... Kd6 {[%clk 0:00:09.2]} 40.
Ke1 {[%clk 0:00:20.4]} 40... a5 {[%clk 0:00:08.1]} 41. bxa5 {[%clk 0:00:15.5]}
41... bxa5 {[%clk 0:00:09]} 42. Kd2 {[%clk 0:00:16.2]} 42... Kc5 {[%clk
0:00:09]} 43. Kc3 {[%clk 0:00:16.8]} 43... Kd6 {[%clk 0:00:07.2]} 44. Ne2 {[%clk
0:00:16.8]} 44... Ke5 {[%clk 0:00:05]} 45. Nd4 {[%clk 0:00:15.8]} 45... Kd6
{[%clk 0:00:04.8]} 46. Nb3 {[%clk 0:00:16.1]} 46... a4 {[%clk 0:00:03.5]} 47.
Nd4 {[%clk 0:00:13.9]} 47... Kc5 {[%clk 0:00:03.6]} 48. Ne2 {[%clk 0:00:13.3]}
48... Kd6 {[%clk 0:00:03.5]} 49. Kb4 {[%clk 0:00:13.2]} 49... Ke5 {[%clk
0:00:03]} 50. Nd4 {[%clk 0:00:13.3]} 50... Be8 {[%clk 0:00:02]} 51. Kc5 {[%clk
0:00:13.8]} 51... Bd7 {[%clk 0:00:01.8]} 52. Ne2 {[%clk 0:00:12.9]} 52... Bg4
{[%clk 0:00:01.5]} 53. Nc3 {[%clk 0:00:13.3]} 1-0

[Event "Early-Titled-Tuesday-Blitz-April-16-2024"]
[Site "Chess.com"]
[Date "2024.04.16"]
[Round "4"]
[White "vasblesk"]
[Black "BogdanDeac"]
[Result "0-1"]
[WhiteElo "2822"]
[BlackElo "3029"]
[TimeControl "180+1"]
[EndTime "8:40:40 PDT"]
[Termination "BogdanDeac won by resignation"]

1. d4 {[%clk 0:03:00.9]} 1... Nf6 {[%clk 0:03:00.6]} 2. c4 {[%clk 0:02:58]} 2...
e6 {[%clk 0:03:01.2]} 3. Nf3 {[%clk 0:02:58.4]} 3... d5 {[%clk 0:03:01.9]} 4. g3
{[%clk 0:02:56.3]} 4... dxc4 {[%clk 0:03:02.1]} 5. Bg2 {[%clk 0:02:55.6]} 5...
Nc6 {[%clk 0:02:51.8]} 6. O-O {[%clk 0:02:55.3]} 6... Rb8 {[%clk 0:02:51.5]} 7.
a4 {[%clk 0:02:54.8]} 7... Be7 {[%clk 0:02:37.4]} 8. Na3 {[%clk 0:02:44.4]} 8...
Na5 {[%clk 0:02:29.1]} 9. Ne5 {[%clk 0:02:42.5]} 9... Nb3 {[%clk 0:02:26.2]} 10.
Rb1 {[%clk 0:02:38.7]} 10... Nxc1 {[%clk 0:02:25.5]} 11. Rxc1 {[%clk 0:02:38]}
11... O-O {[%clk 0:02:24.7]} 12. Naxc4 {[%clk 0:02:37.2]} 12... c6 {[%clk
0:02:25]} 13. Qd2 {[%clk 0:02:22.2]} 13... Nd7 {[%clk 0:02:21]} 14. Nd3 {[%clk
0:02:18.6]} 14... Nb6 {[%clk 0:02:17.6]} 15. Nxb6 {[%clk 0:02:18.4]} 15... axb6
{[%clk 0:02:15]} 16. e3 {[%clk 0:02:16.4]} 16... Ra8 {[%clk 0:02:12.3]} 17. Qc2
{[%clk 0:02:14.9]} 17... Bd7 {[%clk 0:02:05.8]} 18. b4 {[%clk 0:02:12.4]} 18...
Bd6 {[%clk 0:02:05.1]} 19. Ra1 {[%clk 0:02:09.4]} 19... Qe7 {[%clk 0:02:01.6]}
20. a5 {[%clk 0:02:06.4]} 20... bxa5 {[%clk 0:01:38.6]} 21. bxa5 {[%clk
0:02:07.3]} 21... e5 {[%clk 0:01:39]} 22. dxe5 {[%clk 0:01:36.9]} 22... Bxe5
{[%clk 0:01:38]} 23. Nxe5 {[%clk 0:01:37.8]} 23... Qxe5 {[%clk 0:01:37.8]} 24.
Rfb1 {[%clk 0:01:24.1]} 24... Rfd8 {[%clk 0:00:49.8]} 25. Qb2 {[%clk 0:01:13.8]}
25... Qxb2 {[%clk 0:00:24.3]} 26. Rxb2 {[%clk 0:01:14.7]} 26... Bc8 {[%clk
0:00:24.6]} 27. a6 {[%clk 0:00:53.9]} 27... Ra7 {[%clk 0:00:21.7]} 28. h4 {[%clk
0:00:40.1]} 28... g6 {[%clk 0:00:20.5]} 29. Rb6 {[%clk 0:00:36.2]} 29... bxa6
{[%clk 0:00:11.4]} 30. Rxc6 {[%clk 0:00:31.9]} 30... a5 {[%clk 0:00:09.4]} 31.
Rc5 {[%clk 0:00:24.7]} 31... a4 {[%clk 0:00:09.2]} 32. Bc6 {[%clk 0:00:24]}
32... a3 {[%clk 0:00:07.3]} 33. Bd5 {[%clk 0:00:14.6]} 33... Be6 {[%clk
0:00:04.4]} 34. Bxe6 {[%clk 0:00:14.2]} 34... fxe6 {[%clk 0:00:05.3]} 35. Ra2
{[%clk 0:00:13.4]} 35... Rd3 {[%clk 0:00:04.9]} 36. Kg2 {[%clk 0:00:11.3]} 36...
Rb3 {[%clk 0:00:04.6]} 37. Rcc2 {[%clk 0:00:09.9]} 37... Kf7 {[%clk 0:00:04.3]}
38. Kf3 {[%clk 0:00:09.6]} 38... h6 {[%clk 0:00:04.2]} 39. Ke2 {[%clk
0:00:09.9]} 39... g5 {[%clk 0:00:04.4]} 40. hxg5 {[%clk 0:00:10.2]} 40... hxg5
{[%clk 0:00:05.1]} 41. Kd2 {[%clk 0:00:09.6]} 41... Rd7+ {[%clk 0:00:05.1]} 42.
Ke2 {[%clk 0:00:09.7]} 42... Rdb7 {[%clk 0:00:05]} 43. Kd2 {[%clk 0:00:08.7]}
43... Kf6 {[%clk 0:00:05.3]} 44. Ke2 {[%clk 0:00:06.6]} 44... Kf5 {[%clk
0:00:05.1]} 45. Rc5+ {[%clk 0:00:06]} 45... e5 {[%clk 0:00:05]} 46. Rcc2 {[%clk
0:00:06]} 46... e4 {[%clk 0:00:05.2]} 47. Rc5+ {[%clk 0:00:05]} 47... Kg4 {[%clk
0:00:05.3]} 48. Rcc2 {[%clk 0:00:03.3]} 48... Rb2 {[%clk 0:00:05.7]} 49. Kd1
{[%clk 0:00:03.4]} 49... Rxa2 {[%clk 0:00:05.4]} 50. Rxa2 {[%clk 0:00:03.3]}
50... Rb1+ {[%clk 0:00:05.8]} 51. Kc2 {[%clk 0:00:04]} 51... Rb2+ {[%clk
0:00:06.5]} 52. Rxb2 {[%clk 0:00:04.5]} 52... axb2 {[%clk 0:00:07.4]} 53. Kxb2
{[%clk 0:00:05.2]} 53... Kf3 {[%clk 0:00:08]} 54. Kc3 {[%clk 0:00:05.9]} 54...
Kxf2 {[%clk 0:00:05.8]} 55. Kd4 {[%clk 0:00:06.2]} 55... Kxg3 {[%clk 0:00:03.7]}
56. Kxe4 {[%clk 0:00:06.8]} 56... g4 {[%clk 0:00:04.3]} 57. Kf5 {[%clk
0:00:05.3]} 57... Kf3 {[%clk 0:00:04.7]} 58. e4 {[%clk 0:00:06.2]} 58... g3
{[%clk 0:00:05.3]} 59. e5 {[%clk 0:00:07.1]} 59... g2 {[%clk 0:00:05.9]} 60. e6
{[%clk 0:00:08]} 60... g1=Q {[%clk 0:00:06.5]} 61. Kf6 {[%clk 0:00:08.7]} 61...
Qg8 {[%clk 0:00:07.1]} 62. e7 {[%clk 0:00:09.6]} 62... Qe8 {[%clk 0:00:07.3]}
0-1

[Event "Early-Titled-Tuesday-Blitz-April-16-2024"]
[Site "Chess.com"]
[Date "2024.04.16"]
[Round "4"]
[White "David_George21"]
[Black "lluiss"]
[Result "0-1"]
[WhiteElo "2304"]
[BlackElo "2093"]
[TimeControl "180+1"]
[EndTime "8:40:44 PDT"]
[Termination "lluiss won on time"]

1. e4 {[%clk 0:03:00.9]} 1... c5 {[%clk 0:02:59.2]} 2. Nf3 {[%clk 0:02:58.2]}
2... d6 {[%clk 0:02:58.7]} 3. d4 {[%clk 0:02:59.1]} 3... cxd4 {[%clk 0:02:58.5]}
4. Nxd4 {[%clk 0:03:00]} 4... Nf6 {[%clk 0:02:58]} 5. Nc3 {[%clk 0:02:59.4]}
5... g6 {[%clk 0:02:58]} 6. Be3 {[%clk 0:02:56.1]} 6... Bg7 {[%clk 0:02:57.8]}
7. f3 {[%clk 0:02:56.7]} 7... O-O {[%clk 0:02:57.6]} 8. Qd2 {[%clk 0:02:57.4]}
8... Nc6 {[%clk 0:02:57.8]} 9. g4 {[%clk 0:02:58.1]} 9... Nxd4 {[%clk
0:02:54.5]} 10. Bxd4 {[%clk 0:02:57.4]} 10... Be6 {[%clk 0:02:55.2]} 11. h4
{[%clk 0:02:52.2]} 11... Qa5 {[%clk 0:02:54.8]} 12. h5 {[%clk 0:02:48]} 12...
Rfc8 {[%clk 0:02:50.1]} 13. hxg6 {[%clk 0:02:25.3]} 13... hxg6 {[%clk
0:02:49.4]} 14. Be2 {[%clk 0:02:10]} 14... Bc4 {[%clk 0:02:39.2]} 15. g5 {[%clk
0:02:00.9]} 15... Nh5 {[%clk 0:02:34.8]} 16. Bxg7 {[%clk 0:01:52.7]} 16... Kxg7
{[%clk 0:02:29.7]} 17. Bxc4 {[%clk 0:01:31]} 17... Rxc4 {[%clk 0:02:27.2]} 18.
O-O-O {[%clk 0:01:28.4]} 18... Rac8 {[%clk 0:02:22.9]} 19. Kb1 {[%clk 0:01:28]}
19... R8c6 {[%clk 0:01:32.2]} 20. f4 {[%clk 0:01:08.4]} 20... Rxc3 {[%clk
0:01:17.6]} 21. bxc3 {[%clk 0:01:05.7]} 21... Qa3 {[%clk 0:01:04]} 22. Ka1
{[%clk 0:00:52.6]} 22... Nxf4 {[%clk 0:00:36.4]} 23. Rb1 {[%clk 0:00:24.3]}
23... e5 {[%clk 0:00:30.1]} 24. Rb3 {[%clk 0:00:17.6]} 24... Qa6 {[%clk
0:00:28]} 25. Rhb1 {[%clk 0:00:11.8]} 25... b6 {[%clk 0:00:26.9]} 26. Qe3 {[%clk
0:00:06.6]} 26... Kf8 {[%clk 0:00:25]} 27. Qd2 {[%clk 0:00:05.2]} 27... Ke7
{[%clk 0:00:24.4]} 28. Qh2 {[%clk 0:00:05.3]} 28... Ne6 {[%clk 0:00:23.9]} 29.
Qh8 {[%clk 0:00:05.1]} 29... Nxg5 {[%clk 0:00:22.5]} 30. Qh6 {[%clk 0:00:03.6]}
30... Ne6 {[%clk 0:00:20.6]} 31. Qh4+ {[%clk 0:00:03.7]} 31... Kd7 {[%clk
0:00:19.8]} 32. Qf6 {[%clk 0:00:03.7]} 32... Nd8 {[%clk 0:00:19.6]} 33. Qg7
{[%clk 0:00:03.2]} 33... Qc4 {[%clk 0:00:15.7]} 34. Qf6 {[%clk 0:00:03.6]} 34...
Qxe4 {[%clk 0:00:14.4]} 35. Rg1 {[%clk 0:00:03.7]} 35... Qxc2 {[%clk 0:00:13.4]}
36. Rgb1 {[%clk 0:00:01.5]} 36... Rxc3 {[%clk 0:00:13]} 37. Qg7 {[%clk
0:00:01.1]} 37... Rxb3 {[%clk 0:00:12.5]} 38. Rxb3 {[%clk 0:00:01.1]} 38... Qc1+
{[%clk 0:00:12.5]} 39. Rb1 {[%clk 0:00:01.2]} 39... Qc3+ {[%clk 0:00:12.5]} 40.
Rb2 {[%clk 0:00:01.9]} 40... Qd4 {[%clk 0:00:11.6]} 41. Kb1 {[%clk 0:00:01.8]}
41... Qe4+ {[%clk 0:00:10]} 42. Ka1 {[%clk 0:00:01.6]} 42... Qe1+ {[%clk
0:00:08.4]} 43. Rb1 {[%clk 0:00:02]} 43... Qc3+ {[%clk 0:00:08.8]} 44. Rb2
{[%clk 0:00:02.5]} 44... Ke7 {[%clk 0:00:08.8]} 45. Qh6 {[%clk 0:00:01.8]} 45...
Ne6 {[%clk 0:00:08.6]} 46. Qh4+ {[%clk 0:00:01.6]} 46... Kf8 {[%clk 0:00:08.8]}
47. Qh8+ {[%clk 0:00:01.6]} 47... Ke7 {[%clk 0:00:09]} 48. Qh4+ {[%clk
0:00:01.8]} 48... Kd7 {[%clk 0:00:09.3]} 49. Qh7 {[%clk 0:00:01.9]} 49... Nd8
{[%clk 0:00:09]} 50. Qg8 {[%clk 0:00:01.9]} 50... b5 {[%clk 0:00:08.8]} 51. Qf8
{[%clk 0:00:01.1]} 51... b4 {[%clk 0:00:08.5]} 52. Qg7 {[%clk 0:00:01.3]} 52...
a5 {[%clk 0:00:08.5]} 53. Qf6 {[%clk 0:00:01.8]} 53... a4 {[%clk 0:00:08.1]} 54.
Kb1 {[%clk 0:00:01.6]} 54... a3 {[%clk 0:00:08.2]} 55. Rc2 {[%clk 0:00:01.5]}
55... Qd3 {[%clk 0:00:08.1]} 56. Kc1 {[%clk 0:00:01.4]} 56... b3 {[%clk
0:00:08]} 57. axb3 {[%clk 0:00:01.3]} 57... Qxb3 {[%clk 0:00:08.2]} 58. Rd2
{[%clk 0:00:01.7]} 58... Qb6 {[%clk 0:00:05]} 0-1